fUSD/lending_fUSD_20260606
["ID","MTS","AMOUNT","RATE_DAILY","PERIOD"]
[424237563,1780680640000,-500.0,0.00015,2]
[424237567,1780680640000,-500.0,0.00015,2]
[424237559,1780680640000,-500.0,0.00015,2]
[424237565,1780680640000,-500.0,0.00015,2]
[424237564,1780680640000,-500.0,0.00015,2]
[424237561,1780680640000,-500.0,0.00015,2]
[424237562,1780680640000,-500.0,0.00015,2]
[424237555,1780680640000,-500.0,0.00015,2]
[424237558,1780680640000,-500.0,0.00015,2]
[424237557,1780680640000,-500.0,0.00015,2]
[424237568,1780680640000,-500.0,0.00015,2]
[424237569,1780680640000,-500.0,0.00015,2]
[424237550,1780680640000,-500.0,0.00015,2]
[424237571,1780680640000,-500.0,0.00015,2]
[424237556,1780680640000,-500.0,0.00015,2]
[424237542,1780680640000,-151.0,0.00015,2]
[424237522,1780680640000,-283.0350104,0.00014986,2]
[424237532,1780680640000,-500.0,0.00015,2]
[424237572,1780680640000,-500.0,0.00015,2]
[424237512,1780680640000,-6436.91,0.000148,2]
[424237514,1780680640000,-6436.92,0.000148,2]
[424237513,1780680640000,-6436.91,0.000148,2]
[424237527,1780680640000,-27578884.53241137,0.00015,2]
[424237523,1780680640000,-250.0,0.00014999,2]
[424237517,1780680640000,-150.0,0.00014898,2]
[424237516,1780680640000,-150.0,0.00014854,2]
[424237515,1780680640000,-150.0,0.0001481,2]
[424237519,1780680640000,-150.0,0.00014942,2]
[424237520,1780680640000,-225.73,0.00014985,2]
[424237525,1780680640000,-300.0,0.00014999,2]
[424237521,1780680640000,-168.37532272,0.00014986,2]
[424237535,1780680640000,-500.0,0.00015,2]
[424237526,1780680640000,-666.0,0.00014999,2]
[424237518,1780680640000,-169.08600476,0.000149,2]
[424237529,1780680640000,-849161.05344926,0.00015,2]
[424237536,1780680640000,-500.0,0.00015,2]
[424237538,1780680640000,-500.0,0.00015,2]
[424237528,1780680640000,-2513.65311835,0.00015,14]
[424237537,1780680640000,-500.0,0.00015,2]
[424237541,1780680640000,-266.47364494,0.00015,3]
[424237539,1780680640000,-299.42093481,0.00015,2]
[424237540,1780680640000,-500.0,0.00015,3]
[424237530,1780680640000,-428.77736464,0.00015,2]
[424237531,1780680640000,-351.7515791,0.00015,2]
[424237534,1780680640000,-266.47364494,0.00015,2]
[424237533,1780680640000,-500.0,0.00015,2]
[424237524,1780680640000,-300.0,0.00014999,2]
[424237570,1780680640000,-500.0,0.00015,2]
[424237594,1780680640000,-500.0,0.00015,2]
[424237578,1780680640000,-500.0,0.00015,2]
[424237606,1780680640000,-500.0,0.00015,2]
[424237611,1780680640000,-343.406116,0.00015,2]
[424237608,1780680640000,-500.0,0.00015,2]
[424237607,1780680640000,-500.0,0.00015,2]
[424237609,1780680640000,-500.0,0.00015,2]
[424237610,1780680640000,-500.0,0.00015,2]
[424237615,1780680640000,-151.0,0.00015,2]
[424237626,1780680640000,-157.16765097,0.00015,2]
[424237614,1780680640000,-150.79690271,0.00015,2]
[424237624,1780680640000,-219.05588366,0.00015,2]
[424237617,1780680640000,-151.0,0.00015,2]
[424237622,1780680640000,-486.7170632,0.00015,2]
[424237619,1780680640000,-151.0,0.00015,2]
[424237605,1780680640000,-500.0,0.00015,2]
[424237621,1780680640000,-162.23902107,0.00015,2]
[424237623,1780680640000,-162.23902107,0.00015,3]
[424237616,1780680640000,-151.0,0.00015,2]
[424237618,1780680640000,-151.0,0.00015,2]
[424237627,1780680640000,-219.05588365,0.00015,3]
[424237635,1780680640000,-1555.5,0.00015265,2]
[424237632,1780680640000,-360.414396,0.00015068,2]
[424237634,1780680640000,-4609.0,0.00015079,2]
[424237630,1780680640000,-360.414396,0.00015068,2]
[424237631,1780680640000,-360.414396,0.00015068,2]
[424237629,1780680640000,-360.414396,0.00015068,2]
[424237633,1780680640000,-500.0,0.00015068,2]
[424237628,1780680640000,-1252.0,0.00015026,2]
[424237581,1780680640000,-500.0,0.00015,2]
[424237625,1780680640000,-500.0,0.00015,2]
[424237603,1780680640000,-500.0,0.00015,2]
[424237620,1780680640000,-151.0,0.00015,2]
[424237613,1780680640000,-226.19535407,0.00015,2]
[424237574,1780680640000,-500.0,0.00015,2]
[424237573,1780680640000,-500.0,0.00015,2]
[424237604,1780680640000,-500.0,0.00015,2]
[424237575,1780680640000,-500.0,0.00015,2]
[424237579,1780680640000,-500.0,0.00015,2]
[424237577,1780680640000,-500.0,0.00015,2]
[424237576,1780680640000,-500.0,0.00015,2]
[424237582,1780680640000,-500.0,0.00015,2]
[424237584,1780680640000,-500.0,0.00015,2]
[424237589,1780680640000,-500.0,0.00015,2]
[424237583,1780680640000,-500.0,0.00015,2]
[424237592,1780680640000,-500.0,0.00015,2]
[424237585,1780680640000,-500.0,0.00015,2]
[424237591,1780680640000,-500.0,0.00015,2]
[424237580,1780680640000,-500.0,0.00015,2]
[424237593,1780680640000,-500.0,0.00015,2]
[424237586,1780680640000,-500.0,0.00015,2]
[424237612,1780680640000,-152.346654,0.00015,2]
[424237600,1780680640000,-500.0,0.00015,2]
[424237597,1780680640000,-500.0,0.00015,2]
[424237599,1780680640000,-500.0,0.00015,2]
[424237601,1780680640000,-500.0,0.00015,2]
[424237602,1780680640000,-500.0,0.00015,2]
[424237595,1780680640000,-500.0,0.00015,2]
[424237596,1780680640000,-500.0,0.00015,2]
[424237587,1780680640000,-500.0,0.00015,2]
[424237588,1780680640000,-500.0,0.00015,2]
[424237590,1780680640000,-500.0,0.00015,2]
[424237598,1780680640000,-500.0,0.00015,2]
[424237646,1780680641000,-16128.12783429,0.0001611,15]
[424237641,1780680641000,-300.0,0.00016,2]
[424237642,1780680641000,-160.0,0.00016,8]
[424237654,1780680641000,-185.576005,0.00016438,2]
[424237657,1780680641000,-3001.961721,0.00016438,2]
[424237653,1780680641000,-185.576005,0.00016438,2]
[424237661,1780680641000,-1000.0,0.000165,2]
[424237644,1780680641000,-660.83068784,0.00016,2]
[424237659,1780680641000,-3001.961721,0.00016438,2]
[424237665,1780680641000,-281.63,0.000169,2]
[424237645,1780680641000,-660.83068784,0.000161,2]
[424237640,1780680641000,-1613.0535,0.00015813,2]
[424237651,1780680641000,-4636.4,0.00016438,2]
[424237652,1780680641000,-185.576005,0.00016438,2]
[424237649,1780680641000,-200.0,0.0001634,2]
[424237650,1780680641000,-1672.7364795,0.00016361,2]
[424237648,1780680641000,-660.83068784,0.000162,2]
[424237647,1780680641000,-9999.99,0.00016116,2]
[424237638,1780680641000,-2000.0,0.00015498,2]
[424237637,1780680641000,-1517.64,0.000153,2]
[424237639,1780680641000,-2274.92026271,0.00015807,2]
[424237636,1780680641000,-585.21139503,0.00015298,2]
[424237656,1780680641000,-3001.961721,0.00016438,2]
[424237643,1780680641000,-779.10858517,0.00016,2]
[424237658,1780680641000,-3001.961721,0.00016438,2]
[424237676,1780680641000,-1224.41,0.000175,2]
[424237663,1780680641000,-6453.0,0.00016587,2]
[424237660,1780680641000,-6623.30767049,0.000165,2]
[424237686,1780680641000,-32505.29989145,0.00017829,2]
[424237684,1780680641000,-3345.9201499,0.00017829,2]
[424237683,1780680641000,-1507.7369212,0.00017829,2]
[424237682,1780680641000,-376.9342303,0.00017829,2]
[424237681,1780680641000,-670.46851618,0.00017828,2]
[424237679,1780680641000,-300.0,0.00017828,2]
[424237680,1780680641000,-300.0,0.00017828,2]
[424237674,1780680641000,-1800.0,0.00017451,7]
[424237670,1780680641000,-2000.0,0.00017048,2]
[424237673,1780680641000,-2150.0,0.00017451,2]
[424237672,1780680641000,-2500.0,0.00017451,2]
[424237685,1780680641000,-201023.3393358,0.00017829,2]
[424237668,1780680641000,-767.0,0.00016954,2]
[424237669,1780680641000,-678.47,0.00017004,2]
[424237675,1780680641000,-1798.80895522,0.00017457,2]
[424237678,1780680641000,-767.0,0.00017776,2]
[424237666,1780680641000,-786.28,0.000169,2]
[424237677,1780680641000,-794.06678124,0.000177,2]
[424237667,1780680641000,-1734.62772924,0.00016909,2]
[424237664,1780680641000,-168.28,0.00016712,2]
[424237662,1780680641000,-2129.0,0.00016509,2]
[424237655,1780680641000,-185.576005,0.00016438,2]
[424237671,1780680641000,-3712.57,0.00017261,2]
[424237731,1780680642000,-7523.04626171,0.000187,2]
[424237722,1780680642000,-1108.22,0.00018533,2]
[424237719,1780680642000,-7523.04626171,0.000185,2]
[424237711,1780680642000,-9035.0,0.00018245,2]
[424237717,1780680642000,-540.95084713,0.00018444,2]
[424237716,1780680642000,-4636.4,0.0001841,2]
[424237714,1780680642000,-157.08,0.00018355,2]
[424237709,1780680642000,-3620.0,0.00018147,2]
[424237720,1780680642000,-7642.83003019,0.000185,2]
[424237727,1780680642000,-2000.0,0.00018598,2]
[424237730,1780680642000,-7642.83003019,0.000186,2]
[424237728,1780680642000,-767.0,0.00018598,2]
[424237718,1780680642000,-10007.83181866,0.000185,2]
[424237729,1780680642000,-10007.83181866,0.000186,2]
[424237725,1780680642000,-1934.38338736,0.00018553,2]
[424237723,1780680642000,-553.75,0.00018533,2]
[424237732,1780680642000,-500.0,0.00018795,2]
[424237736,1780680642000,-166.66,0.00018887,2]
[424237733,1780680642000,-10007.83181866,0.000188,2]
[424237735,1780680642000,-500.0,0.00018849,2]
[424237743,1780680642000,-5243.06279321,0.00019,2]
[424237721,1780680642000,-166.66,0.00018506,2]
[424237713,1780680642000,-7642.83003019,0.000183,2]
[424237696,1780680642000,-255.27064826,0.00018,2]
[424237710,1780680642000,-7523.04626171,0.000182,2]
[424237742,1780680642000,-4190.0,0.00019,2]
[424237687,1780680642000,-1275.2,0.00017829,2]
[424237690,1780680642000,-303.5827349,0.00017853,2]
[424237689,1780680642000,-316197.37702031,0.00017829,2]
[424237688,1780680642000,-27204.90682384,0.00017829,2]
[424237691,1780680642000,-159.1,0.00017875,2]
[424237700,1780680642000,-350.0,0.00018,2]
[424237694,1780680642000,-7642.83003019,0.000179,2]
[424237701,1780680642000,-1208.99682724,0.00018,2]
[424237692,1780680642000,-1240.95340377,0.0001789,2]
[424237715,1780680642000,-7523.04626171,0.000184,2]
[424237702,1780680642000,-1010.52765641,0.00018,2]
[424237695,1780680642000,-300.0,0.00017999,2]
[424237699,1780680642000,-110992.59983393,0.00018,2]
[424237698,1780680642000,-7523.04626171,0.00018,2]
[424237697,1780680642000,-170.07902597,0.00018,2]
[424237703,1780680642000,-1865.36488656,0.00018005,2]
[424237706,1780680642000,-7642.83003019,0.000181,2]
[424237707,1780680642000,-1804.15913055,0.000181,2]
[424237708,1780680642000,-166.66,0.00018124,2]
[424237704,1780680642000,-10007.83181866,0.000181,2]
[424237712,1780680642000,-10007.83181866,0.000183,2]
[424237693,1780680642000,-10007.83181866,0.000179,2]
[424237737,1780680642000,-7523.04626171,0.000189,2]
[424237768,1780680642000,-3000.0,0.00019178,2]
[424237744,1780680642000,-1156.45641881,0.00019,2]
[424237763,1780680642000,-216.97782793,0.00019178,2]
[424237767,1780680642000,-265.4971652,0.00019178,2]
[424237773,1780680642000,-991.41694,0.00019178,2]
[424237774,1780680642000,-991.41694,0.00019178,2]
[424237781,1780680642000,-567.0,0.00019205,2]
[424237786,1780680642000,-767.0,0.0001942,2]
[424237784,1780680642000,-10007.83181866,0.000194,2]
[424237778,1780680642000,-10007.83181866,0.000192,2]
[424237780,1780680642000,-1224.41,0.000192,2]
[424237777,1780680642000,-169.77702836,0.00019185,2]
[424237764,1780680642000,-250.0,0.00019178,2]
[424237776,1780680642000,-991.41694,0.00019178,2]
[424237785,1780680642000,-7642.83003019,0.000194,2]
[424237783,1780680642000,-7523.04626171,0.000193,2]
[424237782,1780680642000,-166.66,0.00019269,2]
[424237788,1780680642000,-10007.83181866,0.000196,2]
[424237787,1780680642000,-7523.04626171,0.000195,2]
[424237789,1780680642000,-7642.83003019,0.000196,2]
[424237792,1780680642000,-151.0,0.00019649,2]
[424237790,1780680642000,-151.0,0.00019649,2]
[424237791,1780680642000,-200.0,0.00019649,2]
[424237734,1780680642000,-7642.83003019,0.000188,2]
[424237779,1780680642000,-7642.83003019,0.000192,2]
[424237766,1780680642000,-250.0,0.00019178,2]
[424237775,1780680642000,-991.41694,0.00019178,2]
[424237765,1780680642000,-250.0,0.00019178,2]
[424237741,1780680642000,-19879.78681115,0.00019,2]
[424237762,1780680642000,-150.0,0.00019178,2]
[424237739,1780680642000,-10007.83181866,0.00019,2]
[424237738,1780680642000,-300.0,0.00018999,2]
[424237740,1780680642000,-7642.83003019,0.00019,2]
[424237746,1780680642000,-300.0,0.00019077,2]
[424237756,1780680642000,-152.0,0.00019107,2]
[424237745,1780680642000,-500.0,0.00019007,2]
[424237749,1780680642000,-200.0,0.00019078,2]
[424237750,1780680642000,-1852.42,0.00019078,2]
[424237747,1780680642000,-150.0,0.00019078,2]
[424237758,1780680642000,-150.0,0.00019178,2]
[424237769,1780680642000,-314.504776,0.00019178,2]
[424237772,1780680642000,-314.504776,0.00019178,2]
[424237752,1780680642000,-1138.29,0.00019078,2]
[424237770,1780680642000,-314.504776,0.00019178,2]
[424237760,1780680642000,-150.0,0.00019178,2]
[424237755,1780680642000,-2005.9555727,0.00019101,2]
[424237771,1780680642000,-314.504776,0.00019178,2]
[424237754,1780680642000,-7523.04626171,0.000191,2]
[424237751,1780680642000,-89772.95,0.00019078,2]
[424237753,1780680642000,-230.52,0.00019078,2]
[424237748,1780680642000,-38385.49,0.00019078,2]
[424237829,1780680643000,-500.0,0.00019649,2]
[424237836,1780680643000,-168.28,0.00019658,2]
[424237833,1780680643000,-500.0,0.00019649,2]
[424237832,1780680643000,-151.0,0.00019649,2]
[424237834,1780680643000,-500.0,0.00019649,2]
[424237826,1780680643000,-500.0,0.00019649,2]
[424237839,1780680643000,-3863.2148735,0.000199,3]
[424237827,1780680643000,-151.0,0.00019649,2]
[424237830,1780680643000,-151.0,0.00019649,2]
[424237838,1780680643000,-10007.83181866,0.000198,2]
[424237828,1780680643000,-151.0,0.00019649,2]
[424237831,1780680643000,-500.0,0.00019649,2]
[424237835,1780680643000,-166.66,0.0001965,2]
[424237837,1780680643000,-7523.04626171,0.000197,2]
[424237845,1780680643000,-1649.0,0.0002,2]
[424237840,1780680643000,-5557.0,0.00019939,2]
[424237850,1780680643000,-1144.0,0.0002,2]
[424237844,1780680643000,-252.0,0.0002,2]
[424237849,1780680643000,-2873.0,0.0002,2]
[424237842,1780680643000,-651.34447119,0.0002,2]
[424237843,1780680643000,-418.0,0.0002,2]
[424237848,1780680643000,-3469.0,0.0002,2]
[424237847,1780680643000,-612.0,0.0002,2]
[424237846,1780680643000,-861.0,0.0002,2]
[424237860,1780680643000,-315.71783904,0.0002,2]
[424237853,1780680643000,-584.0,0.0002,2]
[424237854,1780680643000,-5912.43679,0.0002,2]
[424237821,1780680643000,-151.0,0.00019649,2]
[424237841,1780680643000,-15757.9473134,0.0001995,15]
[424237825,1780680643000,-151.0,0.00019649,2]
[424237793,1780680643000,-151.0,0.00019649,2]
[424237822,1780680643000,-151.0,0.00019649,2]
[424237862,1780680643000,-26828.47894211,0.0002,2]
[424237800,1780680643000,-151.0,0.00019649,2]
[424237794,1780680643000,-151.0,0.00019649,2]
[424237798,1780680643000,-151.0,0.00019649,2]
[424237796,1780680643000,-151.0,0.00019649,2]
[424237799,1780680643000,-151.0,0.00019649,2]
[424237797,1780680643000,-151.0,0.00019649,2]
[424237795,1780680643000,-151.0,0.00019649,2]
[424237802,1780680643000,-2080.17592889,0.00019649,2]
[424237811,1780680643000,-500.0,0.00019649,2]
[424237812,1780680643000,-151.0,0.00019649,2]
[424237813,1780680643000,-151.0,0.00019649,2]
[424237801,1780680643000,-151.0,0.00019649,2]
[424237816,1780680643000,-151.0,0.00019649,2]
[424237806,1780680643000,-500.0,0.00019649,2]
[424237809,1780680643000,-151.0,0.00019649,2]
[424237807,1780680643000,-151.0,0.00019649,2]
[424237805,1780680643000,-151.0,0.00019649,2]
[424237810,1780680643000,-151.0,0.00019649,2]
[424237808,1780680643000,-500.0,0.00019649,2]
[424237814,1780680643000,-500.0,0.00019649,2]
[424237817,1780680643000,-500.0,0.00019649,2]
[424237824,1780680643000,-151.0,0.00019649,2]
[424237823,1780680643000,-151.0,0.00019649,2]
[424237820,1780680643000,-500.0,0.00019649,2]
[424237815,1780680643000,-151.0,0.00019649,2]
[424237818,1780680643000,-151.0,0.00019649,2]
[424237819,1780680643000,-151.0,0.00019649,2]
[424237803,1780680643000,-151.0,0.00019649,2]
[424237852,1780680643000,-2416.0,0.0002,2]
[424237804,1780680643000,-151.0,0.00019649,2]
[424237859,1780680643000,-25972.95343482,0.0002,2]
[424237892,1780680643000,-166.66,0.00020032,2]
[424237891,1780680643000,-190.214303,0.0002,2]
[424237899,1780680643000,-991.41694,0.00020066,2]
[424237897,1780680643000,-151.0,0.00020066,2]
[424237896,1780680643000,-286.777986,0.00020066,2]
[424237902,1780680643000,-991.41694,0.00020066,2]
[424237901,1780680643000,-991.41694,0.00020066,2]
[424237894,1780680643000,-151.0,0.00020066,2]
[424237898,1780680643000,-151.0,0.00020066,2]
[424237900,1780680643000,-991.41694,0.00020066,2]
[424237895,1780680643000,-151.0,0.00020066,2]
[424237904,1780680643000,-1024.56049,0.00020197,2]
[424237915,1780680643000,-200.0,0.00020197,2]
[424237916,1780680643000,-2157.14243826,0.00020197,2]
[424237905,1780680643000,-1024.56049,0.00020197,2]
[424237921,1780680643000,-4636.4,0.00020381,2]
[424237917,1780680643000,-651.34447119,0.000202,2]
[424237903,1780680643000,-12649.0,0.0002007,2]
[424237918,1780680643000,-767.0,0.00020242,2]
[424237919,1780680643000,-194.0,0.00020292,2]
[424237907,1780680643000,-1024.56049,0.00020197,2]
[424237906,1780680643000,-1024.56049,0.00020197,2]
[424237910,1780680643000,-151.0,0.00020197,2]
[424237909,1780680643000,-151.0,0.00020197,2]
[424237908,1780680643000,-151.0,0.00020197,2]
[424237913,1780680643000,-151.0,0.00020197,2]
[424237923,1780680643000,-150.0,0.000204,2]
[424237920,1780680643000,-730.41422237,0.00020298,2]
[424237858,1780680643000,-1494.43624644,0.0002,5]
[424237893,1780680643000,-151.0,0.00020066,2]
[424237890,1780680643000,-190.21430298,0.0002,2]
[424237922,1780680643000,-150.0,0.000204,2]
[424237883,1780680643000,-628.0,0.0002,2]
[424237881,1780680643000,-1352.0,0.0002,2]
[424237856,1780680643000,-1556.79189131,0.0002,2]
[424237857,1780680643000,-179.13739599,0.0002,2]
[424237861,1780680643000,-3950.0,0.0002,2]
[424237855,1780680643000,-5289.22674421,0.0002,2]
[424237863,1780680643000,-400.0,0.0002,2]
[424237864,1780680643000,-1314.18964137,0.0002,2]
[424237865,1780680643000,-80338.00298254,0.0002,2]
[424237871,1780680643000,-8000.0,0.0002,2]
[424237873,1780680643000,-13119.49849949,0.0002,2]
[424237866,1780680643000,-2995.89895247,0.0002,7]
[424237875,1780680643000,-152.0,0.0002,2]
[424237867,1780680643000,-539.41094589,0.0002,7]
[424237870,1780680643000,-52434.51447652,0.0002,2]
[424237851,1780680643000,-2555.0,0.0002,2]
[424237869,1780680643000,-1060.81222375,0.0002,2]
[424237877,1780680643000,-14501.07,0.0002,2]
[424237886,1780680643000,-150.0,0.0002,20]
[424237879,1780680643000,-297.76,0.0002,2]
[424237878,1780680643000,-12917.88,0.0002,2]
[424237876,1780680643000,-5292.62385566,0.0002,2]
[424237884,1780680643000,-3323.0,0.0002,2]
[424237885,1780680643000,-2000.0,0.0002,7]
[424237880,1780680643000,-955.0,0.0002,2]
[424237888,1780680643000,-190.21430298,0.0002,2]
[424237889,1780680643000,-190.21430298,0.0002,2]
[424237887,1780680643000,-190.21430298,0.0002,2]
[424237874,1780680643000,-2499.999999,0.0002,2]
[424237868,1780680643000,-200.0,0.0002,2]
[424237882,1780680643000,-692.0,0.0002,2]
[424237963,1780680644000,-1144.0,0.00021,2]
[424237966,1780680644000,-5912.43679,0.00021,2]
[424237962,1780680644000,-3469.0,0.00021,2]
[424237960,1780680644000,-200.0,0.00021,2]
[424237961,1780680644000,-612.0,0.00021,2]
[424237957,1780680644000,-252.0,0.00021,2]
[424237958,1780680644000,-1649.0,0.00021,2]
[424237968,1780680644000,-200.01508657,0.00021,2]
[424237959,1780680644000,-861.0,0.00021,2]
[424237953,1780680644000,-828.0,0.00020894,2]
[424237954,1780680644000,-828.0,0.00020894,2]
[424237967,1780680644000,-1211.88621371,0.00021,2]
[424237965,1780680644000,-584.0,0.00021,2]
[424237978,1780680644000,-472.87256915,0.000212,2]
[424237969,1780680644000,-1236.78174269,0.00021,7]
[424237971,1780680644000,-955.0,0.00021,2]
[424237979,1780680644000,-628.0,0.00021212,3]
[424237977,1780680644000,-215.77576141,0.000211,7]
[424237970,1780680644000,-160.0,0.00021,7]
[424237972,1780680644000,-1352.0,0.00021,2]
[424237980,1780680644000,-152.0,0.00021212,2]
[424237974,1780680644000,-4091.0,0.00021,2]
[424237981,1780680644000,-3368.74,0.00021273,2]
[424237975,1780680644000,-3323.0,0.00021,2]
[424237973,1780680644000,-692.0,0.00021,2]
[424237950,1780680644000,-651.34447119,0.000208,2]
[424237976,1780680644000,-2139.09,0.000211,7]
[424237964,1780680644000,-2416.0,0.00021,2]
[424237949,1780680644000,-289.0,0.00020789,2]
[424237938,1780680644000,-177.0,0.0002063,3]
[424237955,1780680644000,-472.87256915,0.00021,2]
[424237983,1780680644000,-151.0,0.00021293,2]
[424237926,1780680644000,-900.0,0.00020448,2]
[424237928,1780680644000,-21873.0,0.00020548,2]
[424237931,1780680644000,-150.0,0.0002058,2]
[424237925,1780680644000,-651.34447119,0.000204,2]
[424237927,1780680644000,-507.61815622,0.00020532,7]
[424237929,1780680644000,-150.0,0.0002058,2]
[424237930,1780680644000,-150.0,0.0002058,2]
[424237924,1780680644000,-196.0,0.000204,2]
[424237932,1780680644000,-150.0,0.0002058,2]
[424237933,1780680644000,-150.0,0.0002058,2]
[424237936,1780680644000,-651.34447119,0.000206,2]
[424237935,1780680644000,-170.99510782,0.0002058,2]
[424237934,1780680644000,-150.0,0.0002058,2]
[424237939,1780680644000,-23015.1896691,0.000207,2]
[424237943,1780680644000,-166.66,0.00020767,2]
[424237940,1780680644000,-151.0,0.00020745,2]
[424237942,1780680644000,-2236.95670847,0.00020745,2]
[424237937,1780680644000,-628.0,0.00020606,2]
[424237944,1780680644000,-150.0,0.00020789,2]
[424237941,1780680644000,-200.0,0.00020745,2]
[424237945,1780680644000,-150.0,0.00020789,2]
[424237947,1780680644000,-150.0,0.00020789,2]
[424237948,1780680644000,-150.0,0.00020789,2]
[424237951,1780680644000,-1224.41,0.000208,2]
[424237952,1780680644000,-500.0,0.00020877,2]
[424237946,1780680644000,-150.0,0.00020789,2]
[424237956,1780680644000,-418.0,0.00021,2]
[424237988,1780680644000,-472.87256915,0.000214,2]
[424237982,1780680644000,-434.88,0.00021273,2]
[424237990,1780680644000,-58472.50464696,0.000215,2]
[424238018,1780680644000,-1007.45,0.00021918,2]
[424238021,1780680644000,-950.0,0.00021921,2]
[424238019,1780680644000,-5000.0,0.00021918,2]
[424238020,1780680644000,-150.0,0.00021918,2]
[424238022,1780680644000,-950.0,0.00021921,2]
[424238027,1780680644000,-950.0,0.00021921,2]
[424238025,1780680644000,-950.0,0.00021921,2]
[424238023,1780680644000,-950.0,0.00021921,2]
[424238029,1780680644000,-950.0,0.00021921,2]
[424238024,1780680644000,-950.0,0.00021921,2]
[424238026,1780680644000,-950.0,0.00021921,2]
[424238028,1780680644000,-950.0,0.00021921,2]
[424238031,1780680644000,-418.0,0.00022,2]
[424238041,1780680644000,-450.0,0.00022,2]
[424238042,1780680644000,-160.0,0.00022,2]
[424238034,1780680644000,-861.0,0.00022,2]
[424238035,1780680644000,-612.0,0.00022,2]
[424238033,1780680644000,-1649.0,0.00022,2]
[424238032,1780680644000,-252.0,0.00022,2]
[424238030,1780680644000,-805.0,0.00021921,2]
[424238036,1780680644000,-3469.0,0.00022,2]
[424238038,1780680644000,-2416.0,0.00022,2]
[424238039,1780680644000,-584.0,0.00022,2]
[424238040,1780680644000,-5912.43679,0.00022,2]
[424238037,1780680644000,-1144.0,0.00022,2]
[424237989,1780680644000,-166.66,0.00021452,2]
[424238043,1780680644000,-300.0,0.00022,2]
[424238015,1780680644000,-2405.55389863,0.00021841,2]
[424238013,1780680644000,-151.0,0.00021841,2]
[424238044,1780680644000,-955.0,0.00022,2]
[424238012,1780680644000,-628.0,0.00021818,3]
[424237991,1780680644000,-225.69394633,0.000215,2]
[424237992,1780680644000,-151.0,0.000215,2]
[424237987,1780680644000,-4775.8,0.0002137,2]
[424237986,1780680644000,-828.0,0.00021305,2]
[424237984,1780680644000,-200.0,0.00021293,2]
[424237985,1780680644000,-2319.72410669,0.00021293,2]
[424237994,1780680644000,-151.0,0.000215,2]
[424238014,1780680644000,-200.0,0.00021841,2]
[424238001,1780680644000,-314.504776,0.000215,2]
[424238004,1780680644000,-360.414396,0.000215,2]
[424237998,1780680644000,-3001.961721,0.000215,2]
[424238003,1780680644000,-360.414396,0.000215,2]
[424238000,1780680644000,-314.504776,0.000215,2]
[424238002,1780680644000,-314.504776,0.000215,2]
[424237995,1780680644000,-3001.961721,0.000215,2]
[424237999,1780680644000,-314.504776,0.000215,2]
[424238007,1780680644000,-472.87256915,0.000216,2]
[424238009,1780680644000,-450.0,0.00021632,2]